bitfinex-derivatives/quotes_ETHF0:USTF0_20260119
["timestamp","ask_amount","ask_price","bid_price","bid_amount"]
[1768793559589,0.00467814,3205.8,3205.0,0.00467814]
[1768793563084,0.1413542,3205.8,3203.4,0.14259663]
[1768793563293,1.29976595,3205.1,3203.8,0.14259663]
[1768793563587,1.29976595,3205.6,3204.2,0.14259663]
[1768793563793,1.29976595,3205.3,3204.2,0.14259663]
[1768793564089,1.29976595,3205.3,3204.2,0.0026994]
[1768793564490,1.29976595,3205.0,3204.2,0.0026994]
[1768793565303,1.29976595,3204.7,3203.7,0.14259663]
[1768793565597,1.29976595,3204.4,3203.7,0.14259663]
[1768793566396,1.29976595,3204.4,3203.7,0.0033928]
[1768793566894,0.00467814,3205.1,3203.3,0.14259663]
[1768793567091,1.29976595,3204.7,3203.4,0.14259663]
[1768793567784,1.29976595,3204.7,3203.4,0.14570973]
[1768793568796,0.00467814,3205.1,3203.4,0.14570973]
[1768793568996,1.29976595,3204.8,3203.4,0.14570973]
[1768793569900,0.00467814,3205.1,3203.8,0.14259663]
[1768793570089,0.00225931,3206.0,3205.5,1.29976595]
[1768793570400,0.00225931,3206.0,3205.2,1.29976595]
[1768793571194,0.00225931,3206.0,3204.8,1.44236258]
[1768793571696,0.00225931,3206.0,3204.9,0.14259663]
[1768793578898,0.1395696,3206.0,3204.3,0.12747505]
[1768793579197,0.13731029,3205.9,3203.8,0.12747505]
[1768793579795,0.13731029,3205.7,3203.8,0.12747505]
[1768793579992,0.13731029,3205.5,3203.8,0.12747505]
[1768793580401,2.00699602,3205.5,3203.3,0.12747505]
[1768793580591,0.13731029,3205.4,3203.3,0.12747505]
[1768793581103,0.13731029,3205.4,3203.4,0.13058815]
[1768793591110,0.13731029,3204.6,3203.4,0.0031131]
[1768793591714,0.13731029,3204.6,3203.7,0.00467814]
[1768793591913,0.13731029,3204.6,3203.4,0.0031131]
[1768793592111,0.00467814,3204.5,3203.4,0.0031131]
[1768793592405,0.14198843,3204.5,3203.4,0.0031131]
[1768793599521,0.00467814,3204.5,3203.4,0.13058815]
[1768793605426,0.00467814,3204.5,3203.4,0.0031131]
[1768793610924,1.30006678,3204.4,3203.4,0.0031131]
[1768793611126,1.30006678,3204.1,3203.4,0.0031131]
[1768793613243,1.30006678,3204.1,3202.9,0.13344711]
[1768793614049,1.30006678,3204.1,3202.9,0.13576469]
[1768793614839,0.14129971,3204.5,3202.9,0.13576469]
[1768793615044,0.92579535,3204.4,3202.9,0.13576469]
[1768793615232,0.14129971,3204.5,3202.9,0.13576469]
[1768793615436,0.92603875,3204.4,3202.9,0.13576469]
[1768793615636,0.14129971,3204.5,3202.9,0.13576469]
[1768793615833,0.92603044,3204.4,3202.9,0.13576469]
[1768793616036,0.14129971,3204.5,3202.9,0.13576469]
[1768793616237,0.92603095,3204.4,3202.9,0.13576469]
[1768793616438,0.14129971,3204.5,3202.9,0.13576469]
[1768793616641,0.92619719,3204.4,3202.9,0.13576469]
[1768793616844,0.92619719,3204.3,3202.9,0.13576469]
[1768793617147,0.14129971,3204.5,3202.9,0.13576469]
[1768793617349,0.92660419,3204.4,3202.9,0.13576469]
[1768793617546,0.92660419,3204.3,3202.9,0.13576469]
[1768793617846,0.14129971,3204.5,3202.9,0.13576469]
[1768793618040,0.83843974,3204.4,3202.9,0.13576469]
[1768793618238,1.89568425,3204.4,3202.9,0.13576469]
[1768793618437,0.92662195,3204.3,3202.9,0.13576469]
[1768793620242,1.76506169,3204.3,3202.9,0.13576469]
[1768793623050,0.13062256,3204.2,3202.9,0.00231758]
[1768793623350,0.92662195,3204.1,3202.9,0.00231758]
[1768793625752,0.92662195,3204.1,3201.5,1.8]
[1768793625753,0.9690623,3203.7,3201.8,0.13416521]
[1768793625953,0.92662195,3203.6,3201.8,0.13416521]
[1768793626448,0.92662195,3203.6,3202.5,0.13416521]
[1768793626649,0.92662195,3203.6,3202.5,0.1375549]
[1768793626650,0.00337275,3203.6,3202.5,0.1375549]
[1768793628844,0.00337275,3203.6,3202.5,1.43775029]
[1768793629050,0.00337275,3203.6,3202.6,0.13416521]
[1768793632657,0.84311788,3204.5,3202.6,0.13416521]
[1768793632962,0.92645608,3204.4,3202.9,0.14278695]
[1768793633257,0.92645608,3204.3,3202.9,0.14278695]
[1768793633456,0.00467814,3204.5,3202.9,0.14278695]
[1768793633647,0.0082988,3204.5,3202.9,0.14278695]
[1768793634257,0.9267071,3204.4,3202.9,0.14278695]
[1768793634451,0.0082988,3204.5,3202.9,0.14278695]
[1768793634651,0.92670171,3204.4,3202.9,0.14278695]
[1768793634851,0.0082988,3204.5,3202.9,0.14278695]
[1768793635052,0.92669432,3204.4,3202.9,0.14278695]
[1768793635250,0.0082988,3204.5,3202.9,0.14278695]
[1768793635452,1.06602522,3204.4,3202.7,0.15618]
[1768793635755,0.92688208,3204.3,3202.5,0.14617664]
[1768793635953,0.92688208,3204.2,3202.5,0.14617664]
[1768793636258,0.92688208,3204.1,3202.5,0.14617664]
[1768793636452,0.97758288,3204.4,3202.5,0.14617664]
[1768793636653,0.92680849,3204.3,3202.5,0.14617664]
[1768793636853,0.92680849,3204.2,3202.5,0.14617664]
[1768793637053,0.92680849,3204.1,3202.5,0.14617664]
[1768793637256,0.97758288,3204.4,3202.5,0.14617664]
[1768793637563,0.92684097,3204.3,3202.5,0.14617664]
[1768793637756,0.92684097,3204.2,3202.5,0.14617664]
[1768793637955,0.92684097,3204.1,3202.5,0.14617664]
[1768793638157,0.92684097,3204.0,3202.5,0.14617664]
[1768793638359,0.83843974,3204.3,3202.5,0.14617664]
[1768793638656,1.76534853,3204.3,3202.5,0.14617664]
[1768793639063,0.92690879,3204.2,3202.5,0.14617664]
[1768793639262,0.92690879,3204.1,3202.5,0.14617664]
[1768793639454,0.92690879,3204.0,3202.5,0.14617664]
[1768793639748,0.83843974,3204.3,3202.5,0.14617664]
[1768793640061,1.76534797,3204.3,3202.5,0.14617664]
[1768793640259,0.92690823,3204.2,3202.5,0.14617664]
[1768793640459,0.92690823,3204.1,3202.5,0.14617664]
[1768793640759,0.92690823,3204.0,3202.5,0.14617664]
[1768793640960,0.83843974,3204.3,3202.5,0.14617664]
[1768793641659,1.76536239,3204.3,3202.5,0.14617664]
[1768793643668,1.90450553,3204.3,3202.5,0.14617664]
[1768793643859,0.92692265,3204.2,3202.5,0.14617664]
[1768793644065,0.92692265,3204.1,3202.5,0.14617664]
[1768793644266,0.92692265,3204.0,3202.5,0.14617664]
[1768793644467,0.97758288,3204.3,3202.5,0.14617664]
[1768793644670,0.92647897,3204.2,3202.5,0.14617664]
[1768793644868,1.06562211,3204.1,3202.5,0.14617664]
[1768793645168,0.92647897,3204.0,3202.5,0.14617664]
[1768793645370,0.92647897,3203.9,3202.5,0.14617664]
[1768793645558,0.13914314,3204.1,3202.5,0.14617664]
[1768793645758,0.92623196,3204.0,3202.5,0.14617664]
[1768793645957,0.92623196,3203.9,3202.5,0.14617664]
[1768793646262,0.13914314,3204.1,3202.5,0.14617664]
[1768793646465,0.92604996,3204.0,3202.5,0.14617664]
[1768793646659,0.92604996,3203.9,3202.5,0.14617664]
[1768793646859,0.13914314,3204.1,3202.5,0.14617664]
[1768793647063,0.92611969,3204.0,3202.5,0.14617664]
[1768793647264,0.92611969,3203.9,3202.5,0.14617664]
[1768793647466,0.97758288,3204.1,3202.5,0.14617664]
[1768793647657,0.92607095,3204.0,3202.5,0.14617664]
[1768793647862,0.92607095,3203.9,3202.5,0.14617664]
[1768793648072,0.13914314,3204.1,3202.5,0.14617664]
[1768793648271,0.92606946,3204.0,3202.5,0.14617664]
[1768793648473,0.92606946,3203.9,3202.5,0.14617664]
[1768793648769,0.13914314,3204.1,3202.5,0.14617664]
[1768793648971,0.9260538,3204.0,3202.5,0.14617664]
[1768793649171,0.9260538,3203.9,3202.5,0.14617664]
[1768793649372,0.13914314,3204.1,3202.5,0.14617664]
[1768793649676,0.92604223,3204.0,3202.5,0.14617664]
[1768793649867,0.92604223,3203.9,3202.5,0.14617664]
[1768793650173,0.13914314,3204.1,3202.5,0.14617664]
[1768793650359,0.92602452,3204.0,3202.5,0.14617664]
[1768793650562,0.92602452,3203.9,3202.5,0.14617664]
[1768793650767,0.13914314,3204.1,3202.5,0.14617664]
[1768793650967,0.92601986,3204.0,3202.5,0.14617664]
[1768793651170,0.92601986,3203.9,3202.5,0.14617664]
[1768793651371,0.13914314,3204.1,3202.5,0.14617664]
[1768793651557,0.92601596,3204.0,3202.5,0.14617664]
[1768793651758,0.92601596,3203.9,3202.5,0.14617664]
[1768793651961,0.13914314,3204.1,3202.5,0.14617664]
[1768793652163,0.92601449,3204.0,3202.5,0.14617664]
[1768793652374,0.92601449,3203.9,3202.5,0.14617664]
[1768793652567,0.13914314,3204.1,3202.5,0.14617664]
[1768793654576,0.83843974,3204.3,3202.5,0.14617664]
[1768793654875,0.92468583,3204.2,3202.5,0.14617664]
[1768793655069,0.14744194,3204.5,3202.8,0.14278695]
[1768793655070,0.98588168,3204.5,3202.8,0.14278695]
[1768793655277,0.92472149,3204.4,3202.8,0.14278695]
[1768793655478,0.92472149,3204.3,3202.8,0.14278695]
[1768793655776,0.92472149,3204.2,3202.8,0.14278695]
[1768793655977,0.98588168,3204.5,3202.8,0.14278695]
[1768793656177,1.763317,3204.4,3202.8,0.14278695]
[1768793656471,0.92487726,3204.3,3202.8,0.14278695]
[1768793656675,0.92487726,3204.2,3202.8,0.14278695]
[1768793656875,0.84673854,3204.5,3202.8,0.14278695]
[1768793657078,0.92524726,3204.4,3202.8,0.14278695]
[1768793657276,0.92524726,3204.3,3202.8,0.14278695]
[1768793657472,0.92524726,3204.2,3202.8,0.14278695]
[1768793657674,0.0082988,3204.5,3203.2,0.14278695]
[1768793662478,0.0082988,3204.5,3202.8,0.15618]
[1768793662479,0.0082988,3204.5,3202.8,0.29347608]
[1768793664275,0.14229272,3204.5,3202.8,0.29347608]
[1768793664472,0.14229272,3204.5,3202.9,0.13729608]
[1768793665182,0.14229272,3204.5,3202.6,0.13729608]
[1768793665183,1.05833031,3204.4,3202.6,0.13729608]
[1768793665479,0.13399392,3204.4,3202.6,0.13729608]
[1768793667177,0.0082988,3204.5,3202.6,0.13729608]
[1768793667384,0.92427601,3204.4,3202.6,0.13729608]
[1768793667585,0.0082988,3204.5,3202.9,0.13729608]
[1768793667789,0.92427209,3204.4,3202.9,0.13729608]
[1768793668082,0.0082988,3204.5,3203.0,0.13729608]
[1768793672190,0.0082988,3204.5,3203.4,0.13729608]
[1768793674987,0.0082988,3204.5,3203.8,1.29938937]
[1768793676087,0.0082988,3204.5,3203.4,0.13729608]
[1768793676287,0.0082988,3204.5,3203.6,1.29938937]
[1768793677882,0.0082988,3204.5,3203.2,1.29938937]
[1768793679682,0.0082988,3204.5,3203.5,1.29938937]
[1768793681795,2.058,3205.7,3203.5,1.29938937]
[1768793681796,0.98194681,3206.2,3204.3,0.13271122]
[1768793682091,0.924395,3206.1,3204.7,1.29938937]
[1768793682291,1.29938937,3205.7,3204.3,0.13271122]
[1768793682684,1.30212113,3205.7,3204.3,0.13271122]
[1768793684399,0.00273176,3205.7,3204.5,1.29938937]
[1768793685094,0.00273176,3205.7,3204.3,0.13271122]
[1768793685494,0.00273176,3205.7,3204.5,1.29938937]
[1768793685696,0.00273176,3205.7,3204.3,0.13271122]
[1768793688800,0.00273176,3205.7,3204.5,1.29938937]
[1768793690103,1.29938937,3205.6,3204.2,1.29938937]
[1768793690402,1.29938937,3205.6,3203.9,6.35210059]
[1768793690701,1.29938937,3205.6,3204.0,0.13271122]
[1768793692698,1.29938937,3205.6,3204.2,1.29938937]
[1768793692898,1.29938937,3205.6,3204.0,0.13271122]
[1768793693202,1.29938937,3205.6,3204.4,1.29938937]
[1768793693703,0.00273176,3205.7,3204.4,1.29938937]
[1768793694001,0.00273176,3205.7,3204.8,1.29938937]
[1768793694193,0.00273176,3205.7,3204.8,1.30319357]
[1768793698001,0.00273176,3205.7,3204.8,0.0038042]
[1768793701208,0.00273176,3205.7,3205.0,1.29938937]
[1768793701904,0.00273176,3205.7,3205.3,1.29938937]
[1768793702101,0.156,3206.5,3205.3,1.29938937]
[1768793702306,0.92313704,3206.4,3205.6,0.00467814]
[1768793702615,42.47256633,3207.1,3205.6,0.00467814]
[1768793702616,0.83843974,3207.0,3206.2,1.29938937]
[1768793702805,0.13622823,3207.4,3206.2,1.29938937]
[1768793703115,0.92333815,3207.3,3206.2,1.29938937]
[1768793703314,0.00280803,3207.3,3206.2,1.29938937]
[1768793705819,0.00280803,3207.3,3206.5,1.43952964]
[1768793706019,0.00280803,3207.3,3206.5,0.14014027]
[1768793706314,0.00280803,3207.3,3206.7,1.29938937]
[1768793707016,1.29938937,3208.1,3206.7,1.29938937]
[1768793707216,0.92064234,3208.0,3206.7,1.29938937]
[1768793707416,0.92064234,3207.9,3206.7,1.29938937]
[1768793707611,0.97466797,3208.3,3207.0,1.29938937]
[1768793707809,0.13924379,3208.3,3207.0,1.29938937]
[1768793708116,1.29938937,3207.6,3206.2,0.14014027]
[1768793708621,1.29938937,3207.7,3206.2,0.14014027]
[1768793709318,0.13622823,3208.1,3206.2,0.14014027]
[1768793709518,1.29938937,3207.7,3206.2,0.14014027]
[1768793710819,1.29938937,3207.7,3206.6,0.00467814]
[1768793711422,0.13622823,3208.0,3206.6,0.00467814]
[1768793711619,1.29938937,3207.7,3206.6,0.00467814]
[1768793712910,0.13622823,3208.0,3206.6,0.00467814]
[1768793713120,1.29938937,3207.6,3206.6,0.00467814]
[1768793718923,0.15593,3208.0,3206.6,0.00467814]
[1768793719129,1.29938937,3207.9,3206.6,0.00467814]
[1768793721232,1.29938937,3207.7,3206.6,0.00467814]
[1768793721419,1.29938937,3207.5,3206.6,0.00467814]
[1768793722020,1.29938937,3207.7,3206.6,0.00467814]
[1768793725328,1.29938937,3207.5,3206.6,0.00467814]
[1768793725527,1.29938937,3206.8,3205.4,1.44227319]
[1768793725729,1.29938937,3206.6,3205.4,1.44227319]
[1768793726733,1.29938937,3206.8,3205.4,1.44227319]
[1768793729536,1.43009699,3207.0,3205.4,1.44227319]
[1768793729736,0.91873438,3206.9,3205.7,1.29938937]
[1768793730032,0.91873438,3206.8,3205.7,1.29938937]
[1768793730228,1.43009699,3207.0,3205.7,1.29938937]
[1768793730429,0.91872217,3206.9,3205.7,1.29938937]
[1768793730629,0.91872217,3206.8,3205.7,1.29938937]
[1768793730835,1.43009699,3207.0,3205.7,1.29938937]
[1768793731029,0.91872298,3206.9,3205.7,1.29938937]
[1768793731223,0.91872298,3206.8,3205.7,1.29938937]
[1768793731426,0.91872298,3206.7,3205.7,1.29938937]
[1768793731627,2.26853673,3207.0,3205.7,1.29938937]
[1768793731935,0.91944479,3206.9,3205.7,1.29938937]
[1768793732233,0.91944479,3206.8,3205.7,1.29938937]
[1768793732434,0.91944479,3206.7,3205.7,1.29938937]
[1768793732626,0.83843974,3206.9,3205.5,1.29938937]
[1768793732826,0.91994048,3206.9,3205.5,0.14288382]
[1768793733035,0.91994048,3206.8,3205.5,1.44227319]
[1768793733232,0.91994048,3206.7,3205.8,1.29938937]
[1768793733433,0.83843974,3207.0,3205.8,1.29938937]
[1768793734436,1.75827735,3207.0,3206.0,1.29938937]
[1768793734735,0.91983761,3206.9,3206.0,1.29938937]
[1768793734933,0.91983761,3206.8,3206.0,1.29938937]
[1768793735134,0.83843974,3207.0,3206.0,1.29938937]
[1768793735334,0.83843974,3207.0,3205.8,1.44227319]
[1768793736445,0.91995806,3206.9,3205.8,1.44227319]
[1768793736643,0.91995806,3206.8,3205.8,1.44227319]
[1768793736826,0.83843974,3207.1,3205.8,0.14288382]
[1768793737539,0.83843974,3207.1,3205.5,0.14288382]
[1768793737735,0.91943427,3207.0,3205.5,0.14288382]
[1768793737932,0.91943427,3206.9,3205.5,0.14288382]
[1768793738131,0.83843974,3207.2,3205.5,0.14288382]
[1768793740132,0.98176686,3207.2,3205.5,0.14288382]
[1768793740332,0.91941406,3207.1,3205.5,0.14288382]
[1768793741045,1.90118092,3207.1,3205.5,0.14288382]
[1768793741242,0.91941406,3207.0,3205.5,0.14288382]
[1768793743045,0.91941406,3206.9,3205.5,0.14288382]
[1768793743244,0.14332712,3207.1,3205.5,0.14288382]
[1768793743546,0.91948664,3207.0,3205.5,0.14288382]
[1768793743741,0.91948664,3206.9,3205.5,0.14288382]
[1768793743942,0.14332712,3207.1,3205.5,0.14288382]
[1768793744140,0.91949589,3207.0,3205.8,0.13332265]
[1768793744333,0.91949589,3206.9,3205.8,0.13332265]
[1768793744539,0.83843974,3207.2,3205.8,0.13332265]
[1768793745643,0.98176686,3207.2,3205.8,0.13332265]
[1768793745844,0.91954089,3207.1,3205.8,0.13332265]
[1768793746142,0.91954089,3207.0,3205.8,0.13332265]
[1768793746339,0.91954089,3206.9,3205.8,0.13332265]
[1768793746544,0.98176686,3207.2,3205.8,0.13332265]
[1768793746848,0.91848351,3207.1,3205.8,0.13332265]
[1768793747046,0.91848351,3207.0,3205.8,0.13332265]
[1768793747347,0.91848351,3206.9,3205.8,0.13332265]
[1768793747543,0.83843974,3207.2,3205.8,0.13332265]
[1768793747847,0.00467814,3207.5,3205.2,3.27506]
[1768793747848,0.00467814,3207.5,3206.1,0.13332265]
[1768793748049,0.91871478,3207.4,3206.1,0.13332265]
[1768793748345,0.91871478,3207.3,3206.1,0.13332265]
[1768793748539,0.00467814,3207.5,3206.1,0.13332265]
[1768793748741,0.91807407,3207.4,3206.1,0.13332265]
[1768793749040,0.91807407,3207.3,3206.1,0.13332265]
[1768793749239,0.00467814,3207.5,3206.1,0.13332265]
[1768793749440,0.91834612,3207.4,3206.1,0.13332265]
[1768793749640,0.00467814,3207.5,3206.1,0.13332265]
[1768793749840,0.9183633,3207.4,3206.1,0.13332265]
[1768793750149,0.00467814,3207.5,3206.1,0.13332265]
[1768793750339,0.91848625,3207.4,3206.1,0.13332265]
[1768793750539,0.00467814,3207.5,3206.1,0.13332265]
[1768793750740,0.91849823,3207.4,3206.1,0.13332265]
[1768793750940,0.00467814,3207.5,3206.1,0.13332265]
[1768793751140,0.91849783,3207.4,3206.1,0.13332265]
[1768793751350,0.00467814,3207.5,3206.1,0.13332265]
[1768793751543,0.91860543,3207.4,3206.1,0.13332265]
[1768793751844,0.00467814,3207.5,3206.1,0.13332265]
[1768793752045,0.91860414,3207.4,3206.1,0.13332265]
[1768793752238,0.00467814,3207.5,3206.1,0.13332265]
[1768793752440,0.91875126,3207.4,3206.1,0.13332265]
[1768793752642,0.00467814,3207.5,3206.1,0.13332265]
[1768793752852,0.91892668,3207.4,3206.1,0.13332265]
[1768793753147,0.00467814,3207.5,3206.1,0.13332265]
[1768793753442,0.00467814,3207.5,3206.4,1.43860342]
[1768793753652,0.00467814,3207.5,3206.5,0.1407844]
[1768793755855,0.00467814,3207.5,3206.1,0.1407844]
[1768793760240,0.91769345,3207.4,3205.7,0.1407844]
[1768793760445,0.14683444,3207.5,3205.7,0.1407844]
[1768793760753,0.91770407,3207.4,3205.7,0.1407844]
[1768793760942,0.14683444,3207.5,3205.7,0.1407844]
[1768793761144,0.91770548,3207.4,3205.7,0.1407844]
[1768793761339,0.14683444,3207.5,3205.7,0.1407844]
[1768793761656,0.1421563,3207.3,3205.7,0.1407844]
[1768793761855,0.91773919,3207.2,3205.7,0.1407844]
[1768793762043,0.1421563,3207.3,3205.7,0.1407844]
[1768793762352,0.91767527,3207.2,3205.7,0.1407844]
[1768793762551,0.91767527,3207.1,3205.7,0.1407844]
[1768793762757,0.1421563,3207.3,3205.7,0.1407844]
[1768793762943,0.91769078,3207.2,3205.7,0.1407844]
[1768793763145,0.91769078,3207.1,3205.7,0.1407844]
[1768793763353,0.1421563,3207.3,3205.7,0.1407844]
[1768793763557,0.9177518,3207.2,3205.7,0.1407844]
[1768793763754,0.1421563,3207.3,3205.7,0.1407844]
[1768793763954,0.91776788,3207.2,3205.7,0.1407844]
[1768793764157,0.1421563,3207.3,3205.7,0.1407844]
[1768793764356,0.91782166,3207.2,3205.7,0.1407844]
[1768793764658,0.1421563,3207.3,3205.7,0.1407844]
[1768793764857,0.91782092,3207.2,3205.7,0.1407844]
[1768793765058,0.1421563,3207.3,3205.7,0.1407844]
[1768793765244,0.91785966,3207.2,3205.7,0.1407844]
[1768793765444,0.1421563,3207.3,3205.7,0.1407844]
[1768793765660,0.91787409,3207.2,3205.7,0.1407844]
[1768793765960,0.1421563,3207.3,3205.7,0.1407844]
[1768793766160,0.91781129,3207.2,3205.7,0.1407844]
[1768793766459,0.1421563,3207.3,3205.7,0.1407844]
[1768793766646,0.91786393,3207.2,3205.7,0.1407844]
[1768793766961,0.83843974,3207.4,3205.7,0.1407844]
[1768793767850,1.06002398,3207.3,3205.7,0.1407844]
[1768793768052,1.06013866,3207.2,3205.7,0.1407844]
[1768793768253,0.91798236,3207.1,3205.7,0.1407844]
[1768793769058,0.83843974,3207.4,3205.7,0.1407844]
[1768793769257,0.9182207,3207.3,3205.7,0.1407844]
[1768793769563,0.9182207,3207.2,3205.7,0.1407844]
[1768793769859,0.84311788,3207.5,3205.7,0.1407844]
[1768793770059,1.75667856,3207.4,3205.7,0.1407844]
[1768793772658,0.91823882,3207.4,3205.7,0.1407844]
[1768793772961,0.91823882,3207.3,3205.7,0.1407844]
[1768793773258,0.00467814,3207.5,3205.7,0.1407844]
[1768793773561,0.91863345,3207.4,3205.7,0.1407844]
[1768793773855,0.91863345,3207.3,3205.7,0.1407844]
[1768793774058,0.00467814,3207.5,3205.7,0.1407844]
[1768793774245,0.91866597,3207.4,3205.7,0.1407844]
[1768793774444,0.91866597,3207.3,3205.7,0.1407844]
[1768793774657,0.00467814,3207.5,3205.7,0.1407844]
[1768793774862,0.91872355,3207.4,3205.7,0.1407844]
[1768793775055,0.91872355,3207.3,3205.7,0.1407844]
[1768793775256,0.00467814,3207.5,3205.7,0.1407844]
[1768793775456,0.91946324,3207.4,3205.7,0.1407844]
[1768793775658,0.91946324,3207.3,3205.7,0.1407844]
[1768793775858,0.00467814,3207.5,3205.7,0.1407844]
[1768793776058,0.9193728,3207.4,3205.7,0.1407844]
[1768793776258,0.9193728,3207.3,3205.7,0.1407844]
[1768793776459,0.00467814,3207.5,3205.7,0.1407844]
[1768793776660,0.91945207,3207.4,3205.7,0.1407844]
[1768793776963,0.91945207,3207.3,3205.7,0.1407844]
[1768793777163,0.00467814,3207.5,3205.7,0.1407844]
[1768793777366,0.91945879,3207.4,3205.7,0.1407844]
[1768793777563,0.91945879,3207.3,3205.7,0.1407844]
[1768793777864,0.00467814,3207.5,3205.7,0.1407844]
[1768793778054,0.919594,3207.4,3205.7,0.1407844]
[1768793778251,0.919594,3207.3,3205.7,0.1407844]
[1768793778455,0.00467814,3207.5,3205.7,0.1407844]
[1768793778651,0.9195911,3207.4,3205.7,0.1407844]
[1768793778860,0.9195911,3207.3,3205.7,0.1407844]
[1768793779054,0.00467814,3207.5,3205.7,0.1407844]
[1768793779255,0.9196195,3207.4,3205.7,0.1407844]
[1768793779464,0.9196195,3207.3,3205.7,0.1407844]
[1768793779662,0.00467814,3207.5,3205.7,0.1407844]
[1768793779868,0.9196049,3207.4,3205.7,0.1407844]
[1768793780062,0.9196049,3207.3,3205.7,0.1407844]
[1768793780262,0.00467814,3207.5,3205.7,0.1407844]
[1768793780467,0.9196075,3207.4,3205.7,0.1407844]
[1768793780667,0.9196075,3207.3,3205.7,0.1407844]
[1768793780866,0.00467814,3207.5,3205.7,0.1407844]
[1768793781065,0.91959761,3207.4,3205.7,0.1407844]
[1768793781263,0.91959761,3207.3,3205.7,0.1407844]
[1768793781465,0.00467814,3207.5,3205.7,0.1407844]
[1768793781767,0.91959389,3207.4,3205.7,0.1407844]
[1768793782069,0.91959389,3207.3,3205.7,0.1407844]
[1768793782267,0.00467814,3207.5,3205.7,0.1407844]
[1768793782469,0.13669321,3207.3,3205.7,0.1407844]
[1768793782672,0.91953362,3207.2,3205.7,0.1407844]
[1768793782863,0.13669321,3207.3,3205.7,0.1407844]
[1768793783169,0.91955631,3207.2,3205.7,0.1407844]
[1768793783360,0.13669321,3207.3,3205.7,0.1407844]
[1768793783560,0.91955017,3207.2,3205.7,0.1407844]
[1768793783769,0.84311788,3207.5,3205.7,0.1407844]
[1768793783955,0.91954874,3207.4,3205.7,0.1407844]
[1768793784159,0.91954874,3207.3,3205.7,0.1407844]
[1768793784360,0.91954874,3207.2,3205.7,0.1407844]
[1768793784561,0.84311788,3207.5,3205.7,0.1407844]
[1768793784761,0.91958713,3207.4,3205.7,0.1407844]
[1768793784964,0.91958713,3207.3,3205.7,0.1407844]
[1768793785163,0.91958713,3207.2,3205.7,0.1407844]
[1768793785455,0.84311788,3207.5,3205.7,0.1407844]
[1768793785658,0.91964078,3207.4,3205.7,0.1407844]
[1768793785869,0.91964078,3207.3,3205.7,0.1407844]
[1768793786064,0.84311788,3207.5,3205.7,0.1407844]
[1768793786065,0.91964078,3207.2,3205.7,0.1407844]
[1768793786271,0.84311788,3207.5,3205.7,0.1407844]
[1768793786573,1.75816131,3207.4,3205.7,0.1407844]
[1768793786768,0.13669321,3206.7,3205.2,3.88589803]
[1768793786974,1.05618333,3206.6,3204.9,0.15608]
[1768793787173,0.91949012,3206.5,3204.9,0.15608]
[1768793787470,0.13669321,3206.6,3204.9,0.15608]
[1768793787865,0.91925284,3206.5,3204.9,0.15608]
[1768793788068,0.13669321,3206.6,3204.9,0.15608]
[1768793788269,0.91927334,3206.5,3204.9,0.15608]
[1768793788571,0.13669321,3206.6,3204.9,0.15608]
[1768793788773,1.05575492,3206.5,3204.9,0.15608]
[1768793788973,1.05575492,3206.5,3204.8,0.0038042]
[1768793788974,0.13669321,3206.5,3204.8,0.0038042]
[1768793789370,0.91881854,3206.4,3204.8,0.0038042]
[1768793789568,0.13669321,3206.3,3204.8,0.0038042]
[1768793790375,0.00467814,3205.9,3204.8,0.0038042]
[1768793790574,0.00846821,3205.9,3204.8,0.0038042]
[1768793794578,0.00846821,3205.9,3204.8,0.14318308]
[1768793796870,0.00846821,3205.9,3205.1,1.29832417]
[1768793797670,0.00846821,3205.9,3205.1,1.43770305]
[1768793797877,0.13669321,3206.7,3205.5,1.29832417]
[1768793798877,0.14061451,3206.7,3205.5,1.29832417]
[1768793800867,0.0039213,3206.7,3205.1,0.13937888]
[1768793801079,0.0039213,3206.7,3205.7,1.29832417]
[1768793802875,0.0039213,3206.7,3205.4,0.14268309]
[1768793803081,0.0039213,3206.7,3205.6,1.29832417]
[1768793805781,0.0039213,3206.7,3205.4,1.44100726]
[1768793806081,0.0039213,3206.7,3205.5,0.14268309]
[1768793810384,1.30224547,3206.7,3205.5,0.14268309]
[1768793816291,0.92035657,3206.6,3205.5,0.14268309]
[1768793816589,1.30224547,3206.7,3205.5,0.14268309]
[1768793816792,0.9207182,3206.6,3205.5,0.14268309]
[1768793816993,1.30224547,3206.7,3205.5,0.14268309]
[1768793817194,0.92072718,3206.6,3205.5,0.14268309]
[1768793817488,1.30224547,3206.7,3205.5,0.14268309]
[1768793817690,0.92070979,3206.6,3205.5,0.14268309]
[1768793817987,1.29832417,3206.3,3205.0,0.14367632]
[1768793819898,1.29832417,3206.3,3205.1,1.29832417]
[1768793821098,1.29832417,3206.3,3205.4,0.00467814]
[1768793822599,1.29832417,3206.5,3205.4,0.00467814]
[1768793823101,0.9212625,3206.4,3205.4,0.00467814]
[1768793823299,1.29832417,3206.5,3205.4,0.00467814]
[1768793823500,0.92128265,3206.4,3205.4,0.00467814]
[1768793823703,1.29832417,3206.5,3205.4,0.00467814]
[1768793824000,0.92127761,3206.4,3205.4,0.00467814]
[1768793824201,1.29832417,3206.5,3205.4,0.00467814]
[1768793824498,0.9213648,3206.4,3205.4,0.00467814]
[1768793824696,1.29832417,3206.5,3205.4,0.00467814]
[1768793824898,0.92136391,3206.4,3205.4,0.00467814]
[1768793825096,1.29832417,3206.5,3205.4,0.00467814]
[1768793825300,0.92142652,3206.4,3205.4,0.00467814]
[1768793825602,1.29832417,3206.5,3205.4,0.00467814]
[1768793825901,0.92143921,3206.4,3205.4,0.00467814]
[1768793826201,1.29832417,3206.5,3205.4,0.00467814]
[1768793826402,0.92128353,3206.4,3205.4,0.00467814]
[1768793826710,1.29832417,3206.5,3205.4,0.00467814]
[1768793826899,0.92125874,3206.4,3205.4,0.00467814]
[1768793827099,1.29832417,3206.5,3205.4,0.00467814]
[1768793827302,0.92135139,3206.4,3205.4,0.00467814]
[1768793827600,2.28180402,3206.7,3205.4,0.00467814]
[1768793827801,0.92136376,3206.6,3205.4,0.00467814]
[1768793827990,0.92136376,3206.5,3205.4,0.00467814]
[1768793828196,0.92136376,3206.4,3205.4,0.00467814]
[1768793828401,2.28180402,3206.7,3205.4,0.00467814]
[1768793828601,0.92138677,3206.6,3205.4,0.00467814]
[1768793828803,0.92138677,3206.5,3205.4,0.00467814]
[1768793829005,0.92138677,3206.4,3205.4,0.00467814]
[1768793829298,2.28180402,3206.7,3205.4,0.00467814]
[1768793829503,0.92141283,3206.6,3205.4,0.00467814]
[1768793829700,0.92141283,3206.5,3205.7,1.29832417]
[1768793830000,0.0039213,3206.7,3205.7,1.29832417]
[1768793830192,0.92145816,3206.6,3205.7,1.29832417]
[1768793830395,0.92145816,3206.5,3205.7,1.29832417]
[1768793830698,0.0039213,3206.7,3206.1,1.29832417]
[1768793831990,0.0039213,3206.7,3205.7,0.14367632]
[1768793832595,0.0039213,3206.7,3205.5,1.29832417]
[1768793832902,0.0039213,3206.7,3205.4,1.30300231]
[1768793833100,0.0039213,3206.7,3205.6,1.29832417]
[1768793833805,0.0039213,3206.7,3205.8,1.29832417]
[1768793836200,0.0039213,3206.7,3205.7,0.14367632]
[1768793837911,0.0039213,3206.7,3205.4,0.14835446]